[Event "Titled Tuesday Blitz January 31 Early 2023"]
[White "Mitrovic, Darko R"]
[Black "Novikova, Galina"]
[WhiteFideId "927023"]
[BlackFideId "4157095"]
[WhiteElo "2220"]
[BlackElo "2073"]
[Result "1-0"]
[Round "04"]
[TimeControl "180+2"]
[Date "2023.01.31"]
[WhiteClock "0:00:11"]
[BlackClock "0:00:17"]

1. d4 {[%clk 0:03:00]}  e6 {[%clk 0:02:59]} 2. Nf3 {[%clk 0:03:00]}  f5 {[%clk 0:02:57]} 3. g3 {[%clk 0:02:55]}  Nf6 {[%clk 0:02:58]} 4. Bg2 {[%clk 0:02:56]}  Be7 {[%clk 0:02:59]} 5. O-O {[%clk 0:02:56]}  d6 {[%clk 0:03:00]} 6. c4 {[%clk 0:02:57]}  O-O {[%clk 0:03:00]} 7. Nc3 {[%clk 0:02:57]}  a5 {[%clk 0:02:55]} 8. Qc2 {[%clk 0:02:53]}  Nc6 {[%clk 0:02:51]} 9. e4 {[%clk 0:02:53]}  e5 {[%clk 0:02:24]} 10. dxe5 {[%clk 0:02:48]}  dxe5 {[%clk 0:02:23]} 11. exf5 {[%clk 0:02:46]}  e4 {[%clk 0:02:17]} 12. Nxe4 {[%clk 0:02:42]}  Bxf5 {[%clk 0:02:12]} 13. Nxf6+ {[%clk 0:02:41]}  Rxf6 {[%clk 0:02:12]} 14. Qb3 {[%clk 0:02:32]}  a4 {[%clk 0:02:08]} 15. Qe3 {[%clk 0:02:07]}  Re6 {[%clk 0:01:07]} 16. Qf4 {[%clk 0:01:58]}  Bg6 {[%clk 0:01:06]} 17. Ng5 {[%clk 0:01:38]}  Rf6 {[%clk 0:00:54]} 18. Qe3 {[%clk 0:01:19]}  Nb4 {[%clk 0:00:41]} 19. Bxb7 {[%clk 0:00:46]}  Nc2 {[%clk 0:00:29]} 20. Qe2 {[%clk 0:00:42]}  Bd3 {[%clk 0:00:26]} 21. Qh5 {[%clk 0:00:31]}  Bg6 {[%clk 0:00:22]} 22. Qg4 {[%clk 0:00:25]}  Nxa1 {[%clk 0:00:20]} 23. Bd5+ {[%clk 0:00:19]}  Kh8 {[%clk 0:00:17]} 24. Bxa8 {[%clk 0:00:18]}  Qxa8 {[%clk 0:00:17]} 25. Bf4 {[%clk 0:00:11]} 1-0


[Site "https://www.chess.com"]

[Event "Titled Tuesday Blitz January 31 Early 2023"]
[White "Schut, Han"]
[Black "Grigorov, Grigor"]
[WhiteFideId "1005561"]
[BlackFideId "2907313"]
[WhiteElo "2101"]
[BlackElo "2510"]
[Result "0-1"]
[Round "04"]
[TimeControl "180+2"]
[Date "2023.01.31"]
[WhiteClock "0:00:59"]
[BlackClock "0:02:05"]

1. e4 {[%clk 0:02:57]}  c6 {[%clk 0:02:59]} 2. d4 {[%clk 0:02:56]}  d5 {[%clk 0:02:59]} 3. e5 {[%clk 0:02:57]}  Bf5 {[%clk 0:02:59]} 4. Nf3 {[%clk 0:02:57]}  e6 {[%clk 0:02:59]} 5. Be2 {[%clk 0:02:57]}  c5 {[%clk 0:02:57]} 6. Be3 {[%clk 0:02:56]}  Qb6 {[%clk 0:02:56]} 7. Nc3 {[%clk 0:02:55]}  c4 {[%clk 0:02:55]} 8. O-O {[%clk 0:02:37]}  Qxb2 {[%clk 0:02:53]} 9. Qb1 {[%clk 0:02:36]}  Ba3 {[%clk 0:02:48]} 10. Nb5 {[%clk 0:02:29]}  Bxc2 {[%clk 0:02:44]} 11. Nc7+ {[%clk 0:02:09]}  Kd7 {[%clk 0:02:41]} 12. Qxb2 {[%clk 0:02:09]}  Bxb2 {[%clk 0:02:41]} 13. Nxa8 {[%clk 0:02:09]}  Bxa1 {[%clk 0:02:40]} 14. Rxa1 {[%clk 0:02:10]}  Nc6 {[%clk 0:02:37]} 15. Ng5 {[%clk 0:01:32]}  Nh6 {[%clk 0:02:36]} 16. Rc1 {[%clk 0:01:14]}  Bg6 {[%clk 0:02:34]} 17. h4 {[%clk 0:01:10]}  Rxa8 {[%clk 0:02:31]} 18. h5 {[%clk 0:01:10]}  Bf5 {[%clk 0:02:29]} 19. g4 {[%clk 0:01:09]}  Bxg4 {[%clk 0:02:26]} 20. Bxg4 {[%clk 0:01:07]}  Nxg4 {[%clk 0:02:25]} 21. Nxf7 {[%clk 0:01:07]}  b5 {[%clk 0:02:15]} 22. Nd6 {[%clk 0:01:03]}  b4 {[%clk 0:02:12]} 23. Bd2 {[%clk 0:00:59]}  Nxd4 {[%clk 0:02:05]} 0-1


[Site "https://www.chess.com"]

[Event "Titled Tuesday Blitz January 31 Early 2023"]
[White "Miranda Jr, Roberto Calheiros de"]
[Black "Golubev, Mikhail"]
[WhiteFideId "2109417"]
[BlackFideId "14100983"]
[WhiteElo "2182"]
[BlackElo "2461"]
[Result "0-1"]
[Round "04"]
[TimeControl "180+2"]
[Date "2023.01.31"]
[WhiteClock "0:01:45"]
[BlackClock "0:01:56"]

1. e4 {[%clk 0:02:50]}  c5 {[%clk 0:02:59]} 2. Nf3 {[%clk 0:02:47]}  d6 {[%clk 0:02:59]} 3. d4 {[%clk 0:02:46]}  Nf6 {[%clk 0:02:59]} 4. Nc3 {[%clk 0:02:43]}  cxd4 {[%clk 0:02:59]} 5. Nxd4 {[%clk 0:02:43]}  g6 {[%clk 0:02:59]} 6. Be2 {[%clk 0:02:41]}  Bg7 {[%clk 0:02:59]} 7. g4 {[%clk 0:02:40]}  Nc6 {[%clk 0:02:52]} 8. Nxc6 {[%clk 0:02:40]}  bxc6 {[%clk 0:02:52]} 9. Be3 {[%clk 0:02:40]}  Rb8 {[%clk 0:02:45]} 10. Rb1 {[%clk 0:02:35]}  Qa5 {[%clk 0:02:44]} 11. g5 {[%clk 0:02:33]}  Nxe4 {[%clk 0:02:40]} 12. O-O {[%clk 0:02:29]}  Nxg5 {[%clk 0:02:28]} 13. b4 {[%clk 0:02:10]}  Qf5 {[%clk 0:02:22]} 14. Bd3 {[%clk 0:01:48]}  Nf3+ {[%clk 0:02:11]} 15. Kh1 {[%clk 0:01:45]}  Qh5 {[%clk 0:01:56]} 0-1


[Site "https://www.chess.com"]

[Event "Titled Tuesday Blitz January 31 Early 2023"]
[White "Kleiman, Jake"]
[Black "Abdilkhair, Abilmansur"]
[WhiteFideId "2020041"]
[BlackFideId "13716417"]
[WhiteElo "2399"]
[BlackElo "2268"]
[Result "0-1"]
[Round "04"]
[TimeControl "180+2"]
[Date "2023.01.31"]
[WhiteClock "0:00:03"]
[BlackClock "0:00:06"]

1. c4 {[%clk 0:03:00]}  e6 {[%clk 0:02:57]} 2. Nf3 {[%clk 0:02:59]}  d5 {[%clk 0:02:57]} 3. g3 {[%clk 0:02:59]}  Nf6 {[%clk 0:02:56]} 4. Bg2 {[%clk 0:02:59]}  c6 {[%clk 0:02:56]} 5. O-O {[%clk 0:02:59]}  Be7 {[%clk 0:02:56]} 6. d4 {[%clk 0:02:57]}  O-O {[%clk 0:02:56]} 7. Nc3 {[%clk 0:02:47]}  dxc4 {[%clk 0:02:55]} 8. Ne5 {[%clk 0:02:43]}  Nd5 {[%clk 0:02:52]} 9. Nxc4 {[%clk 0:02:38]}  Nd7 {[%clk 0:02:52]} 10. e4 {[%clk 0:02:35]}  Nxc3 {[%clk 0:02:44]} 11. bxc3 {[%clk 0:02:36]}  b6 {[%clk 0:02:42]} 12. e5 {[%clk 0:02:31]}  Ba6 {[%clk 0:02:41]} 13. Qb3 {[%clk 0:02:19]}  Rc8 {[%clk 0:02:39]} 14. Re1 {[%clk 0:02:06]}  c5 {[%clk 0:02:39]} 15. Nd6 {[%clk 0:01:58]}  Bxd6 {[%clk 0:02:34]} 16. exd6 {[%clk 0:01:59]}  cxd4 {[%clk 0:02:29]} 17. cxd4 {[%clk 0:01:58]}  Nb8 {[%clk 0:02:18]} 18. d5 {[%clk 0:01:46]}  exd5 {[%clk 0:02:14]} 19. Qxd5 {[%clk 0:01:39]}  Bc4 {[%clk 0:01:57]} 20. Qd2 {[%clk 0:01:34]}  Na6 {[%clk 0:01:49]} 21. Ba3 {[%clk 0:01:20]}  Nc5 {[%clk 0:01:49]} 22. Qd4 {[%clk 0:00:54]}  Be6 {[%clk 0:01:38]} 23. Bb2 {[%clk 0:00:52]}  Qg5 {[%clk 0:01:35]} 24. h4 {[%clk 0:00:42]}  Qg4 {[%clk 0:01:33]} 25. Qxg4 {[%clk 0:00:36]}  Bxg4 {[%clk 0:01:33]} 26. Re7 {[%clk 0:00:37]}  Rfd8 {[%clk 0:01:30]} 27. Rae1 {[%clk 0:00:31]}  Nd3 {[%clk 0:01:28]} 28. Rb1 {[%clk 0:00:23]}  Rxd6 {[%clk 0:01:16]} 29. Rxa7 {[%clk 0:00:20]}  h5 {[%clk 0:00:59]} 30. Ba3 {[%clk 0:00:15]}  Rf6 {[%clk 0:00:58]} 31. Rf1 {[%clk 0:00:14]}  Be2 {[%clk 0:00:57]} 32. Be7 {[%clk 0:00:14]}  Bxf1 {[%clk 0:00:55]} 33. Bxf1 {[%clk 0:00:10]}  Rxf2 {[%clk 0:00:35]} 34. Bxd3 {[%clk 0:00:09]}  Rd2 {[%clk 0:00:35]} 35. Bf1 {[%clk 0:00:08]}  Rc3 {[%clk 0:00:31]} 36. Ra3 {[%clk 0:00:05]}  Rxa3 {[%clk 0:00:28]} 37. Bxa3 {[%clk 0:00:06]}  Rxa2 {[%clk 0:00:29]} 38. Bd6 {[%clk 0:00:06]}  Rd2 {[%clk 0:00:25]} 39. Bf4 {[%clk 0:00:06]}  Rb2 {[%clk 0:00:23]} 40. Be5 {[%clk 0:00:05]}  Rb1 {[%clk 0:00:22]} 41. Kf2 {[%clk 0:00:04]}  f6 {[%clk 0:00:21]} 42. Bf4 {[%clk 0:00:03]}  Kh8 {[%clk 0:00:21]} 43. Bd3 {[%clk 0:00:03]}  Rb3 {[%clk 0:00:20]} 44. Bg6 {[%clk 0:00:02]}  Rb5 {[%clk 0:00:18]} 45. Ke3 {[%clk 0:00:02]}  Rd5 {[%clk 0:00:17]} 46. Ke4 {[%clk 0:00:02]}  Rc5 {[%clk 0:00:17]} 47. Be3 {[%clk 0:00:03]}  Rc4+ {[%clk 0:00:17]} 48. Kf3 {[%clk 0:00:03]}  b5 {[%clk 0:00:14]} 49. Bxh5 {[%clk 0:00:04]}  b4 {[%clk 0:00:15]} 50. Bf7 {[%clk 0:00:04]}  Rc3 {[%clk 0:00:15]} 51. Ke4 {[%clk 0:00:04]}  b3 {[%clk 0:00:15]} 52. g4 {[%clk 0:00:04]}  b2 {[%clk 0:00:15]} 53. Ba2 {[%clk 0:00:05]}  Rc1 {[%clk 0:00:15]} 54. Kf5 {[%clk 0:00:05]}  b1=Q+ {[%clk 0:00:15]} 55. Bxb1 {[%clk 0:00:05]}  Rxb1 {[%clk 0:00:16]} 56. h5 {[%clk 0:00:06]}  Rb5+ {[%clk 0:00:16]} 57. Kg6 {[%clk 0:00:05]}  Rb3 {[%clk 0:00:13]} 58. Bf4 {[%clk 0:00:05]}  Rb4 {[%clk 0:00:14]} 59. Kf5 {[%clk 0:00:05]}  Kh7 {[%clk 0:00:14]} 60. g5 {[%clk 0:00:05]}  Rb5+ {[%clk 0:00:14]} 61. Kg4 {[%clk 0:00:04]}  f5+ {[%clk 0:00:14]} 62. Kh4 {[%clk 0:00:04]}  Rb3 {[%clk 0:00:13]} 63. g6+ {[%clk 0:00:05]}  Kg8 {[%clk 0:00:13]} 64. Kg5 {[%clk 0:00:06]}  Rb5 {[%clk 0:00:12]} 65. Bd6 {[%clk 0:00:06]}  Rd5 {[%clk 0:00:11]} 66. Bf4 {[%clk 0:00:06]}  Ra5 {[%clk 0:00:11]} 67. Bd6 {[%clk 0:00:06]}  f4+ {[%clk 0:00:10]} 68. Kg4 {[%clk 0:00:05]}  f3 {[%clk 0:00:10]} 69. Bg3 {[%clk 0:00:06]}  Ra3 {[%clk 0:00:08]} 70. Bf2 {[%clk 0:00:05]}  Rc3 {[%clk 0:00:07]} 71. Kg3 {[%clk 0:00:04]}  Kf8 {[%clk 0:00:06]} 72. Kg4 {[%clk 0:00:05]}  Ke7 {[%clk 0:00:06]} 73. Bd4 {[%clk 0:00:05]}  Rc4 {[%clk 0:00:06]} 74. h6 {[%clk 0:00:04]}  gxh6 {[%clk 0:00:06]} 75. Kxf3 {[%clk 0:00:03]}  Rxd4 {[%clk 0:00:06]} 0-1


[Site "https://www.chess.com"]

[Event "Titled Tuesday Blitz January 31 Early 2023"]
[White "Girya, Olga"]
[Black "Lakshmi C"]
[WhiteFideId "4195752"]
[BlackFideId "25035347"]
[WhiteElo "2402"]
[BlackElo "1928"]
[Result "1-0"]
[Round "04"]
[TimeControl "180+2"]
[Date "2023.01.31"]
[WhiteClock "0:01:51"]
[BlackClock "0:01:29"]

1. d4 {[%clk 0:03:00]}  Nf6 {[%clk 0:02:55]} 2. Nf3 {[%clk 0:03:00]}  e6 {[%clk 0:02:55]} 3. c4 {[%clk 0:02:59]}  b6 {[%clk 0:02:50]} 4. g3 {[%clk 0:02:57]}  Bb7 {[%clk 0:02:50]} 5. Bg2 {[%clk 0:02:57]}  Be7 {[%clk 0:02:51]} 6. O-O {[%clk 0:02:57]}  Kf8 {[%clk 0:02:51]} 7. Nc3 {[%clk 0:02:57]}  Ne4 {[%clk 0:02:37]} 8. Qc2 {[%clk 0:02:46]}  Nxc3 {[%clk 0:02:34]} 9. Qxc3 {[%clk 0:02:47]}  f5 {[%clk 0:02:34]} 10. Ne5 {[%clk 0:02:25]}  Bxg2 {[%clk 0:02:31]} 11. Kxg2 {[%clk 0:02:26]}  d6 {[%clk 0:02:32]} 12. Nd3 {[%clk 0:02:25]}  Bf6 {[%clk 0:02:30]} 13. Nf4 {[%clk 0:02:23]}  Qe7 {[%clk 0:02:30]} 14. Qf3 {[%clk 0:02:19]}  c6 {[%clk 0:02:29]} 15. d5 {[%clk 0:02:18]}  cxd5 {[%clk 0:02:26]} 16. cxd5 {[%clk 0:02:19]}  e5 {[%clk 0:02:26]} 17. Ne6+ {[%clk 0:02:19]}  Kf7 {[%clk 0:02:26]} 18. Qxf5 {[%clk 0:02:19]}  g6 {[%clk 0:02:15]} 19. Qf3 {[%clk 0:02:13]}  h6 {[%clk 0:02:06]} 20. Be3 {[%clk 0:02:04]}  Nd7 {[%clk 0:02:05]} 21. Rac1 {[%clk 0:02:02]}  Nc5 {[%clk 0:01:43]} 22. Bxc5 {[%clk 0:01:58]}  bxc5 {[%clk 0:01:42]} 23. b4 {[%clk 0:01:58]}  Rhc8 {[%clk 0:01:37]} 24. bxc5 {[%clk 0:01:53]}  dxc5 {[%clk 0:01:37]} 25. Rc4 {[%clk 0:01:53]}  Rab8 {[%clk 0:01:33]} 26. Rfc1 {[%clk 0:01:53]}  Rb5 {[%clk 0:01:29]} 27. a4 {[%clk 0:01:51]} 1-0


[Site "https://www.chess.com"]

[Event "Titled Tuesday Blitz January 31 Early 2023"]
[White "Vaglio Munoz, Jaime"]
[Black "Mkrtchian, Lilit"]
[WhiteFideId "6500145"]
[BlackFideId "13300601"]
[WhiteElo "2174"]
[BlackElo "2389"]
[Result "1/2-1/2"]
[Round "04"]
[TimeControl "180+2"]
[Date "2023.01.31"]
[WhiteClock "0:00:49"]
[BlackClock "0:00:02"]

1. d4 {[%clk 0:03:00]}  Nf6 {[%clk 0:02:59]} 2. c4 {[%clk 0:03:00]}  e6 {[%clk 0:02:59]} 3. a3 {[%clk 0:03:00]}  d5 {[%clk 0:02:58]} 4. e3 {[%clk 0:02:58]}  b6 {[%clk 0:02:52]} 5. cxd5 {[%clk 0:02:56]}  exd5 {[%clk 0:02:51]} 6. Nf3 {[%clk 0:02:56]}  Bd6 {[%clk 0:02:49]} 7. Bb5+ {[%clk 0:02:54]}  c6 {[%clk 0:02:43]} 8. Bd3 {[%clk 0:02:53]}  Nbd7 {[%clk 0:02:32]} 9. Qc2 {[%clk 0:02:52]}  Bb7 {[%clk 0:02:32]} 10. b4 {[%clk 0:02:50]}  a5 {[%clk 0:02:21]} 11. bxa5 {[%clk 0:02:46]}  Rxa5 {[%clk 0:02:18]} 12. O-O {[%clk 0:02:45]}  O-O {[%clk 0:02:18]} 13. Nbd2 {[%clk 0:02:45]}  c5 {[%clk 0:02:07]} 14. dxc5 {[%clk 0:02:41]}  bxc5 {[%clk 0:02:07]} 15. Bb2 {[%clk 0:02:40]}  c4 {[%clk 0:01:45]} 16. Bf5 {[%clk 0:02:39]}  Qc7 {[%clk 0:01:17]} 17. h3 {[%clk 0:02:36]}  Ne5 {[%clk 0:01:13]} 18. Nd4 {[%clk 0:02:32]}  g6 {[%clk 0:01:04]} 19. Bg4 {[%clk 0:02:29]}  Nexg4 {[%clk 0:01:02]} 20. hxg4 {[%clk 0:02:30]}  Nxg4 {[%clk 0:01:01]} 21. Bc3 {[%clk 0:02:29]}  Rxa3 {[%clk 0:00:38]} 22. Rxa3 {[%clk 0:02:25]}  Bxa3 {[%clk 0:00:38]} 23. N2f3 {[%clk 0:02:24]}  Bc5 {[%clk 0:00:32]} 24. Nf5 {[%clk 0:02:14]}  d4 {[%clk 0:00:16]} 25. exd4 {[%clk 0:01:47]}  Bxf3 {[%clk 0:00:15]} 26. Ng3 {[%clk 0:01:43]}  Bd6 {[%clk 0:00:11]} 27. gxf3 {[%clk 0:01:43]}  Bxg3 {[%clk 0:00:10]} 28. fxg4 {[%clk 0:01:42]}  Bf4 {[%clk 0:00:10]} 29. Qe4 {[%clk 0:01:42]}  Bh6 {[%clk 0:00:07]} 30. f4 {[%clk 0:01:39]}  Qd7 {[%clk 0:00:07]} 31. f5 {[%clk 0:01:37]}  Re8 {[%clk 0:00:07]} 32. Qf3 {[%clk 0:01:36]}  Be3+ {[%clk 0:00:06]} 33. Kg2 {[%clk 0:01:35]}  g5 {[%clk 0:00:06]} 34. d5 {[%clk 0:01:34]}  Bf4 {[%clk 0:00:05]} 35. Qd1 {[%clk 0:01:18]}  Rd8 {[%clk 0:00:04]} 36. Qd4 {[%clk 0:01:18]}  Qxd5+ {[%clk 0:00:04]} 37. Qxd5 {[%clk 0:01:18]}  Rxd5 {[%clk 0:00:05]} 38. Rf3 {[%clk 0:01:17]}  Rd3 {[%clk 0:00:04]} 39. Bf6 {[%clk 0:01:11]}  Rxf3 {[%clk 0:00:03]} 40. Kxf3 {[%clk 0:01:12]}  Kf8 {[%clk 0:00:03]} 41. Ke4 {[%clk 0:01:11]}  Ke8 {[%clk 0:00:03]} 42. Kd4 {[%clk 0:01:11]}  Kd7 {[%clk 0:00:03]} 43. Kxc4 {[%clk 0:01:11]}  Kd6 {[%clk 0:00:03]} 44. Kd4 {[%clk 0:01:10]}  Kc6 {[%clk 0:00:03]} 45. Ke4 {[%clk 0:01:09]}  Kd6 {[%clk 0:00:03]} 46. Kd4 {[%clk 0:01:09]}  Kc6 {[%clk 0:00:03]} 47. Ke4 {[%clk 0:01:08]}  Kc5 {[%clk 0:00:04]} 48. Be7+ {[%clk 0:01:06]}  Kc4 {[%clk 0:00:04]} 49. f6 {[%clk 0:01:03]}  Kc3 {[%clk 0:00:04]} 50. Kf5 {[%clk 0:01:03]}  Kd3 {[%clk 0:00:04]} 51. Bf8 {[%clk 0:01:03]}  Ke3 {[%clk 0:00:04]} 52. Bh6 {[%clk 0:01:04]}  Kf3 {[%clk 0:00:03]} 53. Bg7 {[%clk 0:01:03]}  Kg3 {[%clk 0:00:03]} 54. Bh6 {[%clk 0:01:03]}  Kh4 {[%clk 0:00:03]} 55. Bf8 {[%clk 0:01:02]}  h5 {[%clk 0:00:02]} 56. gxh5 {[%clk 0:01:02]}  Kxh5 {[%clk 0:00:03]} 57. Bc5 {[%clk 0:01:02]}  Bd2 {[%clk 0:00:03]} 58. Bf2 {[%clk 0:01:00]}  g4 {[%clk 0:00:03]} 59. Bg3 {[%clk 0:01:00]}  Bg5 {[%clk 0:00:03]} 60. Ke4 {[%clk 0:00:54]}  Bh4 {[%clk 0:00:03]} 61. Bf4 {[%clk 0:00:52]}  Bxf6 {[%clk 0:00:03]} 62. Kf5 {[%clk 0:00:52]}  Bh4 {[%clk 0:00:01]} 63. Ke4 {[%clk 0:00:52]}  g3 {[%clk 0:00:02]} 64. Kf3 {[%clk 0:00:52]}  Kg6 {[%clk 0:00:01]} 65. Be5 {[%clk 0:00:50]}  Kf5 {[%clk 0:00:01]} 66. Bd6 {[%clk 0:00:50]}  f6 {[%clk 0:00:01]} 67. Bc7 {[%clk 0:00:50]}  Kg5 {[%clk 0:00:01]} 68. Bd8 {[%clk 0:00:49]}  Kf5 {[%clk 0:00:01]} 69. Bc7 {[%clk 0:00:49]}  Ke6 {[%clk 0:00:02]} 70. Bd8 {[%clk 0:00:49]}  Kf5 {[%clk 0:00:02]} 71. Bc7 {[%clk 0:00:49]} 1/2-1/2


[Site "https://www.chess.com"]

[Event "Titled Tuesday Blitz January 31 Early 2023"]
[White "De Souza, Cristiano Gomes"]
[Black "Erzhanov, Arman"]
[WhiteFideId "2151758"]
[BlackFideId "4138821"]
[WhiteElo "2018"]
[BlackElo "2228"]
[Result "0-1"]
[Round "04"]
[TimeControl "180+2"]
[Date "2023.01.31"]
[WhiteClock "0:00:16"]
[BlackClock "0:00:22"]

1. d4 {[%clk 0:02:54]}  d6 {[%clk 0:02:58]} 2. c4 {[%clk 0:02:53]}  e5 {[%clk 0:02:56]} 3. dxe5 {[%clk 0:02:52]}  dxe5 {[%clk 0:02:56]} 4. Qxd8+ {[%clk 0:02:50]}  Kxd8 {[%clk 0:02:56]} 5. Nc3 {[%clk 0:02:49]}  c6 {[%clk 0:02:57]} 6. e4 {[%clk 0:02:48]}  Be6 {[%clk 0:02:57]} 7. Be3 {[%clk 0:02:48]}  Nd7 {[%clk 0:02:57]} 8. a3 {[%clk 0:02:44]}  Kc7 {[%clk 0:02:58]} 9. Rc1 {[%clk 0:02:44]}  f6 {[%clk 0:02:52]} 10. Nf3 {[%clk 0:02:39]}  a5 {[%clk 0:02:50]} 11. Nd2 {[%clk 0:02:38]}  Bc5 {[%clk 0:02:45]} 12. Bxc5 {[%clk 0:02:34]}  Nxc5 {[%clk 0:02:46]} 13. Nd5+ {[%clk 0:02:33]}  Kd6 {[%clk 0:02:30]} 14. Ne3 {[%clk 0:02:26]}  Ne7 {[%clk 0:02:27]} 15. b4 {[%clk 0:02:23]}  axb4 {[%clk 0:02:27]} 16. axb4 {[%clk 0:02:23]}  Na6 {[%clk 0:02:16]} 17. c5+ {[%clk 0:02:22]}  Kc7 {[%clk 0:02:15]} 18. Rb1 {[%clk 0:02:15]}  Rhd8 {[%clk 0:02:10]} 19. Bc4 {[%clk 0:02:14]}  Bc8 {[%clk 0:01:59]} 20. Ke2 {[%clk 0:02:13]}  Rd4 {[%clk 0:01:58]} 21. Rhc1 {[%clk 0:02:10]}  f5 {[%clk 0:01:46]} 22. f3 {[%clk 0:02:02]}  fxe4 {[%clk 0:01:46]} 23. Nxe4 {[%clk 0:01:57]}  Nf5 {[%clk 0:01:42]} 24. Ng4 {[%clk 0:01:35]}  Nh4 {[%clk 0:01:24]} 25. Nxe5 {[%clk 0:01:33]}  Nxg2 {[%clk 0:01:22]} 26. Rg1 {[%clk 0:01:29]}  Bh3 {[%clk 0:00:59]} 27. Kf2 {[%clk 0:01:00]}  Re8 {[%clk 0:00:38]} 28. Bxa6 {[%clk 0:00:42]}  bxa6 {[%clk 0:00:28]} 29. Nf7 {[%clk 0:00:35]}  Nf4 {[%clk 0:00:23]} 30. Rxg7 {[%clk 0:00:25]}  Ne6 {[%clk 0:00:24]} 31. Rxh7 {[%clk 0:00:24]}  Bf5 {[%clk 0:00:24]} 32. Rh4 {[%clk 0:00:17]}  Bxe4 {[%clk 0:00:25]} 33. Rxe4 {[%clk 0:00:17]}  Rxe4 {[%clk 0:00:24]} 34. fxe4 {[%clk 0:00:17]}  Rf8 {[%clk 0:00:25]} 35. Ke3 {[%clk 0:00:17]}  Rxf7 {[%clk 0:00:25]} 36. Ra1 {[%clk 0:00:17]}  Kb7 {[%clk 0:00:25]} 37. Rg1 {[%clk 0:00:16]}  Rh7 {[%clk 0:00:24]} 38. Rg6 {[%clk 0:00:15]}  Rh3+ {[%clk 0:00:25]} 39. Kf2 {[%clk 0:00:15]}  Rxh2+ {[%clk 0:00:20]} 40. Kg3 {[%clk 0:00:14]}  Rg2+ {[%clk 0:00:20]} 41. Kxg2 {[%clk 0:00:14]}  Nf4+ {[%clk 0:00:21]} 42. Kf3 {[%clk 0:00:14]}  Nxg6 {[%clk 0:00:22]} 43. Kg4 {[%clk 0:00:15]}  Kc7 {[%clk 0:00:22]} 44. Kf5 {[%clk 0:00:15]}  Nf8 {[%clk 0:00:21]} 45. Kf6 {[%clk 0:00:15]}  Kd7 {[%clk 0:00:22]} 46. Kf5 {[%clk 0:00:16]}  Ke7 {[%clk 0:00:21]} 47. e5 {[%clk 0:00:16]}  Nd7 {[%clk 0:00:22]} 48. Ke4 {[%clk 0:00:16]}  Ke6 {[%clk 0:00:22]} 49. Kd4 {[%clk 0:00:16]}  Nxe5 {[%clk 0:00:22]} 50. Kc3 {[%clk 0:00:16]}  Kd5 {[%clk 0:00:22]} 51. Kb3 {[%clk 0:00:17]}  Nd3 {[%clk 0:00:22]} 52. Ka4 {[%clk 0:00:17]}  Kc4 {[%clk 0:00:22]} 53. Ka5 {[%clk 0:00:17]}  Nxb4 {[%clk 0:00:23]} 54. Kb6 {[%clk 0:00:17]}  Kd4 {[%clk 0:00:22]} 55. Ka5 {[%clk 0:00:16]}  Kxc5 {[%clk 0:00:22]} 0-1


[Site "https://www.chess.com"]

[Event "Titled Tuesday Blitz January 31 Early 2023"]
[White "Belenkaya, Dina"]
[Black "Dilmukhametov, Artur"]
[WhiteFideId "24142654"]
[BlackFideId "24179922"]
[WhiteElo "2267"]
[BlackElo "2276"]
[Result "1-0"]
[Round "04"]
[TimeControl "180+2"]
[Date "2023.01.31"]
[WhiteClock "0:00:21"]
[BlackClock "0:00:09"]

1. Nf3 {[%clk 0:03:00]}  Nf6 {[%clk 0:02:57]} 2. g3 {[%clk 0:03:01]}  g6 {[%clk 0:02:56]} 3. Bg2 {[%clk 0:02:59]}  Bg7 {[%clk 0:02:56]} 4. d3 {[%clk 0:03:00]}  d6 {[%clk 0:02:56]} 5. Nbd2 {[%clk 0:03:00]}  O-O {[%clk 0:02:56]} 6. e4 {[%clk 0:03:01]}  e5 {[%clk 0:02:51]} 7. O-O {[%clk 0:02:57]}  Ne8 {[%clk 0:02:46]} 8. c3 {[%clk 0:02:52]}  f5 {[%clk 0:02:47]} 9. Qe2 {[%clk 0:02:37]}  f4 {[%clk 0:02:45]} 10. d4 {[%clk 0:02:29]}  fxg3 {[%clk 0:02:40]} 11. hxg3 {[%clk 0:02:26]}  Nc6 {[%clk 0:02:36]} 12. Nb3 {[%clk 0:02:16]}  Bg4 {[%clk 0:02:24]} 13. d5 {[%clk 0:02:00]}  Ne7 {[%clk 0:02:23]} 14. Qd3 {[%clk 0:02:00]}  Nf6 {[%clk 0:02:08]} 15. c4 {[%clk 0:01:51]}  Qd7 {[%clk 0:02:04]} 16. c5 {[%clk 0:01:48]}  Bh3 {[%clk 0:01:58]} 17. Ng5 {[%clk 0:01:42]}  Bxg2 {[%clk 0:01:41]} 18. Kxg2 {[%clk 0:01:43]}  c6 {[%clk 0:01:25]} 19. Ne6 {[%clk 0:01:38]}  Rfe8 {[%clk 0:01:25]} 20. Nxg7 {[%clk 0:01:27]}  Kxg7 {[%clk 0:01:24]} 21. dxc6 {[%clk 0:01:28]}  Qxc6 {[%clk 0:01:16]} 22. cxd6 {[%clk 0:01:28]}  Nc8 {[%clk 0:01:10]} 23. f3 {[%clk 0:01:15]}  Nb6 {[%clk 0:01:09]} 24. Bg5 {[%clk 0:01:10]}  Red8 {[%clk 0:01:06]} 25. Rfd1 {[%clk 0:01:09]}  Nc4 {[%clk 0:01:04]} 26. d7 {[%clk 0:00:57]}  Nb6 {[%clk 0:00:42]} 27. Qd6 {[%clk 0:00:53]}  Qxd6 {[%clk 0:00:41]} 28. Rxd6 {[%clk 0:00:54]}  Rxd7 {[%clk 0:00:39]} 29. Bxf6+ {[%clk 0:00:50]}  Kf7 {[%clk 0:00:39]} 30. Rxd7+ {[%clk 0:00:49]}  Nxd7 {[%clk 0:00:39]} 31. Bg5 {[%clk 0:00:50]}  Rc8 {[%clk 0:00:35]} 32. Rd1 {[%clk 0:00:44]}  Ke6 {[%clk 0:00:32]} 33. Rd2 {[%clk 0:00:41]}  Nf6 {[%clk 0:00:26]} 34. Kf2 {[%clk 0:00:36]}  Ng8 {[%clk 0:00:24]} 35. Be3 {[%clk 0:00:33]}  a6 {[%clk 0:00:24]} 36. Nc5+ {[%clk 0:00:29]}  Ke7 {[%clk 0:00:20]} 37. Nxb7 {[%clk 0:00:30]}  Rb8 {[%clk 0:00:20]} 38. Bc5+ {[%clk 0:00:27]}  Ke8 {[%clk 0:00:18]} 39. Nd6+ {[%clk 0:00:27]}  Ke7 {[%clk 0:00:17]} 40. b4 {[%clk 0:00:28]}  Nf6 {[%clk 0:00:16]} 41. Nc4+ {[%clk 0:00:21]}  Ke6 {[%clk 0:00:13]} 42. Rd6+ {[%clk 0:00:20]}  Kf7 {[%clk 0:00:13]} 43. Nxe5+ {[%clk 0:00:20]}  Kg7 {[%clk 0:00:09]} 44. Rxf6 {[%clk 0:00:21]} 1-0


[Site "https://www.chess.com"]